Cogmind - Beta 12 @@@ ROGUE MODE // 2024.02.03 @ 03:22:03 Player: %41THX3142 Result: Destroyed by G-47 Trooper with Particle Gun Performance ------------- Evolutions (2) 1000 Regions Visited (4) 800 Robots Destroyed (11) 55 Value Destroyed (160) 160 Prototype IDs (3) 60 Alien Tech Used (0) 0 Bonus (0) 0 TOTAL SCORE: 2075 Bonus ------- None Cogmind --------- Core Integrity 0/550 Matter 151/300 Energy 100/100 System Corruption 0% Temperature Cool (9) Movement Core (50) Location -8/Materials Parts ------- > --- POWER (2) -------- (None) > --- PROPULSION (3) --- (None) > --- UTILITY (4) ------ (None) > --- WEAPON (2) ------- (None) > --- INVENTORY (5) ---- Improved Ion Engine Advanced Weight Redist. System Hacking Suite Advanced Beam Rifle Peak State ------------ > --- POWER ------------ Improved Ion Engine > --- PROPULSION ------- Flight Unit Flight Unit Flight Unit > --- UTILITY ---------- Small Battery Visual Processing Unit Sensor Array Signal Interpreter > --- WEAPON ----------- Advanced Beam Rifle Enhanced Autogun > --- INVENTORY -------- Improved Ion Engine Advanced Beam Rifle Grenade Launcher Heavy Flail [Rating: 19] Favorites ----------- Power Improved Ion Engine Engine Improved Ion Engine Propulsion Wheel Wheel Wheel Flight Unit Flight Unit Utility Large Storage Unit Device Sensor Array Storage Large Storage Unit Processor Signal Interpreter Protection Propulsion Shielding Weapon Spread Laser Energy Gun Spread Laser Ballistic Gun Light Assault Rifle Special Weapon Mining Laser Impact Weapon Heavy Flail Build | -11 -10 -9 -9 -8 ------- Run | Jun Mat Mat Min Mat Slots Evolved 4 | . . 2 . 2 Power 1 | . . 1 . . Propulsion 1 | . . . . 1 Utility 2 | . . 1 . 1 Weapon . | . . . . . Parts Attached 44 | 8 5 7 1 23 Power 7 | 2 1 1 . 3 Engine 7 | 2 1 1 . 3 Core . | . . . . . Reactor . | . . . . . Propulsion 11 | 2 . 2 . 7 Treads . | . . . . . Leg . | . . . . . Wheel 5 | 2 . 2 . 1 Hover . | . . . . . Flight 6 | . . . . 6 Utility 8 | 2 2 1 . 3 Device 2 | 1 1 . . . Storage 3 | 1 1 . . 1 Processor 2 | . . 1 . 1 Hackware . | . . . . . Protection 1 | . . . . 1 Artifact . | . . . . . Weapon 18 | 2 2 3 1 10 Energy Gun 5 | . 1 . . 4 Energy Cannon . | . . . . . Ballistic Gun 7 | 2 . 1 1 3 Ballistic Cannon . | . . . . . Launcher . | . . . . . Special Weapon 2 | . 1 1 . . Impact Weapon 4 | . . 1 . 3 Slashing Weapon . | . . . . . Piercing Weapon . | . . . . . Special Melee Weapon . | . . . . . Unidentified Prototypes 3 | . . . . 3 Parts Lost 6 | . . . . 6 Power 1 | . . . . 1 Propulsion 3 | . . . . 3 Utility 1 | . . . . 1 Weapon 1 | . . . . 1 Highest Loss Streak 6 | . . . . 6 To Critical Strikes . | . . . . . Average Slot Usage (%) 95 | . 100 99 100 71 Engine 16 | . 14 22 22 7 Wheel 20 | . 28 21 22 . Flight 3 | . . . . 22 Device 11 | . 14 11 11 7 Storage 10 | . 14 11 11 1 Processor 7 | . . 11 11 16 Energy Gun 9 | . 8 11 11 6 Ballistic Gun 11 | . 18 9 6 3 Impact Weapon 1 | . . . 4 1 Naked Turns 11 | . . . . 11 Heaviest Build 41 | 13 32 41 41 14 Greatest Support 26 | 26 26 26 26 12 Greatest Overweight (x) 2 | . 1 2 1 2 Average Overweight (x) . | . . 1 1 . Largest Inventory Capacity 15 | 8 15 15 15 15 Average Capacity 12 | 7 14 15 15 5 Most Carried 15 | 5 15 15 15 15 Average Carried 11 | 2 12 13 14 5 Final Capacity 15 | 8 15 15 15 5 Final Carried 15 | 5 15 15 15 4 Class Distribution -------------------- 85% | Mutant 13% | Scavenger-Scout Dominant Class ---------------- Mutant | -10/Materials Mutant | -9/Materials Mutant | -9/Mines Scavenger-Scout | -8/Materials Resources | -11 -10 -9 -9 -8 ----------- Run | Jun Mat Mat Min Mat Matter Collected 533 | 300 10 98 66 59 Remotely . | . . . . . Salvage Created 323 | 120 16 45 63 79 Parts 23 | 8 3 7 2 3 Haulers Intercepted 1 | . . . . 1 Recyclers Shooed 1 | 1 . . . . Parts Field Recycled . | . . . . . Retrieved Matter . | . . . . . Parts Self-Destructed . | . . . . . Prevented . | . . . . . Kills | -11 -10 -9 -9 -8 ------- Run | Jun Mat Mat Min Mat Combat Hostiles Destroyed 4 | . . . 3 1 Melee 1 | . . . . 1 Guns 3 | . . . 3 . Classes Destroyed 8 | 2 1 . 3 2 Tunneler 2 | 2 . . . . Hauler 1 | . . . . 1 Recycler 1 | 1 . . . . Watcher 4 | . 2 2 . . Swarmer 1 | . . . 1 . Cutter 1 | . . . . 1 Grunt 1 | . . . 1 . Assembled 1 | . . . 1 . Best Kill Streak 2 | 2 1 1 1 1 Combat Bots Only 1 | . . . 1 1 Max Kills in Single Turn 1 | 1 1 1 1 1 Gunslinging . | . . . . . Exploded . | . . . . . Melee 1 | . . . . 1 Uniques/NPCs Destroyed . | . . . . . Combat | -11 -10 -9 -9 -8 -------- Run | Jun Mat Mat Min Mat Damage Taken 1169 | . . 162 166 841 Core 652 | . . 29 65 558 Absorbed by Shields . | . . . . . Redirected to Shielding 23 | . . . . 23 Core Remaining (%) 92 | 100 100 . 76 . Volleys Fired 53 | 10 23 9 9 2 Largest 2 | 2 2 2 2 2 Hottest 165 | 40 100 165 85 86 Shots Fired 83 | 20 32 14 13 4 Gun 70 | 20 22 11 13 4 Cannon . | . . . . . Launcher . | . . . . . Special 13 | . 10 3 . . Kinetic 48 | 20 18 2 6 2 Thermal 35 | . 14 12 7 2 Explosive . | . . . . . Electromagnetic . | . . . . . Robot Hit Streak 12 | 6 4 3 12 1 Robot Miss Streak 6 | 1 2 5 6 1 Penetration Max . | . . . . . Secondary Targets . | . . . . . Shots Hit Robots 43 | 16 7 4 12 4 Core Hits 34 | 7 9 3 14 1 Critical Kills . | . . . . . Critical Parts Destroyed 1 | . . . . 1 Critical Strikes 1 | . . . . 1 Smash 1 | . . . . 1 Melee Attacks 12 | . . 1 . 11 Impact 12 | . . 1 . 11 Slashing . | . . . . . Piercing . | . . . . . Sneak Attacks . | . . . . . Combat Hostiles . | . . . . . Follow-up Attacks . | . . . . . Damage Inflicted 493 | 126 66 34 131 136 Guns 394 | 126 66 34 131 37 Cannons . | . . . . . Explosions . | . . . . . Melee 93 | . . . . 93 Ramming 6 | . . . . 6 Kinetic 264 | 126 20 24 57 37 Thermal 130 | . 46 10 74 . Explosive . | . . . . . Electromagnetic . | . . . . . Impact 93 | . . . . 93 Slashing . | . . . . . Piercing . | . . . . . Highest Corruption 1 | . 1 . . . Average Corruption 1 | . 1 . . . Corruption Purged . | . . . . . Corruption Blocked . | . . . . . Overload Shots . | . . . . . Overflow Damage 37 | . . . . 37 Projectiles . | . . . . . Explosions . | . . . . . Melee 37 | . . . . 37 Knockbacks . | . . . . . Impact . | . . . . . Kinetic . | . . . . . Secondary . | . . . . . Self-Inflicted Damage 6 | . . . . 6 Shots . | . . . . . Rammed . | . . . . . Targets Rammed . | . . . . . Kicked . | . . . . . Crushed . | . . . . . Highest Temperature 377 | . 240 377 96 84 Average Temperature 110 | . 102 166 46 40 Received Heat Transfer 240 | . . 78 27 135 Effects 1 | . . 1 . . Shutdowns 1 | . . 1 . . Siege Activations . | . . . . . Robots Corrupted . | . . . . . Combat Hostiles . | . . . . . Parts Fried . | . . . . . Impact Corruptions 1 | . . . . 1 Robots Melted . | . . . . . Combat Hostiles . | . . . . . Parts Melted . | . . . . . Heat Transferred 170 | . 55 15 100 . Parts Sabotaged . | . . . . . Parts Stolen . | . . . . . Parts Stripped . | . . . . . Power Chain Reactions . | . . . . . Missiles Intercepted . | . . . . . Alert | -11 -10 -9 -9 -8 ------- Run | Jun Mat Mat Min Mat Peak Influence 117 | 15 58 72 117 87 Initial 45 | . 9 . 27 45 Average 39 | 5 17 32 81 55 Maximum Alert Level . | . . . . . Low Security (%) 100 | 100 100 100 100 100 Level 1 . | . . . . . Level 2 . | . . . . . Level 3 . | . . . . . Level 4 . | . . . . . Level 5 . | . . . . . High Security . | . . . . . Max Security . | . . . . . Squads Dispatched 4 | . 1 1 . 2 Investigation 1 | . . . . 1 Extermination . | . . . . . Reinforcement 3 | . 1 1 . 1 Assault . | . . . . . Garrison . | . . . . . Intercept . | . . . . . Searches Triggered . | . . . . . Construction Impeded . | . . . . . Haulers Reinforced . | . . . . . Active Scanning Responses . | . . . . . Cargo Convoy Interrupts . | . . . . . Stealth | -11 -10 -9 -9 -8 --------- Run | Jun Mat Mat Min Mat Distress Signals 2 | . . 1 . 1 Communications Jammed . | . . . . . Distress Signals . | . . . . . Times Spotted 42 | . 5 11 11 15 Peak Tracking Total 13 | . 2 10 7 13 Tactical Retreats 5 | . . . 4 1 Traps | -11 -10 -9 -9 -8 ------- Run | Jun Mat Mat Min Mat Traps Triggered 3 | . 1 . . 2 Indirectly . | . . . . . Trap Hack Attempts . | . . . . . Triggered . | . . . . . Disarmed . | . . . . . Reprogrammed . | . . . . . Reused . | . . . . . Traps Extracted . | . . . . . Installed . | . . . . . Triggered 1 | . . . 1 . Machines | -11 -10 -9 -9 -8 ---------- Run | Jun Mat Mat Min Mat Machines Disabled . | . . . . . Max in Single Turn . | . . . . . Machines Repaired . | . . . . . Machines Sabotaged . | . . . . . Overloaded Fab Kills . | . . . . . Hacking | -11 -10 -9 -9 -8 --------- Run | Jun Mat Mat Min Mat Machines Accessed 6 | . 2 1 . 3 Terminals 3 | . 1 . . 2 Fabricators . | . . . . . Repair Stations . | . . . . . Recycling Units 2 | . 1 . . 1 Scanalyzers 1 | . . 1 . . Garrison Access . | . . . . . Total Hacks 13 | . 5 4 . 4 Successful 4 | . 1 2 . 1 Failed 9 | . 4 2 . 3 Catastrophic 4 | . 1 . . 3 Database Lockouts . | . . . . . Manual 6 | . 3 . . 3 Terminals 6 | . 3 . . 3 Fabricators . | . . . . . Repair Stations . | . . . . . Recycling Units 3 | . 2 . . 1 Scanalyzers 4 | . . 4 . . Garrison Access . | . . . . . Terminal Hacks . | . . . . . Fabricator Hacks . | . . . . . Repair Station Hacks . | . . . . . Recycling Unit Hacks 2 | . 1 . . 1 Report Inventory 2 | . 1 . . 1 Scanalyzer 2 | . . 2 . . Insert Component 1 | . . 1 . . Analyze 1 | . . 1 . . Garrison Access Hacks . | . . . . . Unauthorized Hacks . | . . . . . Terminals . | . . . . . Fabricators . | . . . . . Repair Stations . | . . . . . Recycling Units . | . . . . . Scanalyzers . | . . . . . Garrison Access . | . . . . . Data Cores Recovered . | . . . . . Used . | . . . . . Hacking Detections 4 | . 1 1 . 2 Full Trace Events 1 | . . . . 1 Feedback Events . | . . . . . Feedback Blocked . | . . . . . Robot Schematics Acquired . | . . . . . Robots Built . | . . . . . Authchips . | . . . . . Time . | . . . . . Total Robot Build Rating . | . . . . . Part Schematics Acquired 1 | . . 1 . . Parts Built . | . . . . . Authchips . | . . . . . Time . | . . . . . Total Part Build Rating . | . . . . . Parts Repaired . | . . . . . Time . | . . . . . Parts Recycled . | . . . . . Recycled Matter . | . . . . . Retrieved Matter . | . . . . . Retrieved Components . | . . . . . Parts Scanalyzed 1 | . . 1 . . Part Schematics Acquired 1 | . . 1 . . Parts Damaged . | . . . . . Bothacking | -11 -10 -9 -9 -8 ------------ Run | Jun Mat Mat Min Mat Used RIF Installer . | . . . . . Robots Hacked . | . . . . . Non-combat . | . . . . . Combat . | . . . . . Robot Hacks Applied . | . . . . . Relay Couplers Released . | . . . . . Fabnet Peak Effective % . | . . . . . Robots Rewired . | . . . . . Allies Hacked . | . . . . . Hacks Repelled . | . . . . . Allies | -11 -10 -9 -9 -8 -------- Run | Jun Mat Mat Min Mat Total Allies . | . . . . . Largest Group . | . . . . . Highest-Rated Group . | . . . . . Highest-Rated Ally . | . . . . . Total Orders . | . . . . . Ally Attacks . | . . . . . Total Damage . | . . . . . Kills . | . . . . . Allies Corrupted . | . . . . . Allies Melted . | . . . . . Intel | -11 -10 -9 -9 -8 ------- Run | Jun Mat Mat Min Mat Robot Analysis Total . | . . . . . Derelict Logs Recovered . | . . . . . Drone Launches . | . . . . . Drone Recoveries . | . . . . . Exploration | -11 -10 -9 -9 -8 ------------- Run | Jun Mat Mat Min Mat Turns Passed 1488 | 93 534 319 302 240 Spaces Moved 1288 | 59 376 201 239 413 Core 23 | 2 . . . 21 Treads . | . . . . . Legs . | . . . . . Wheels 873 | 57 376 201 239 . Hover . | . . . . . Flight 392 | . . . . 392 Fastest Speed 34 | 50 90 105 105 34 Average Speed 81 | 87 103 105 105 36 Slowest Speed 200 | 90 105 130 105 200 Overloaded Moves . | . . . . . Propulsion Burnouts . | . . . . . Robots Hopped 1 | . . . . 1 Cave-ins Triggered . | . . . . . Exploration Rate (%) 32 | 4 57 19 56 27 Regions Visited 4 Branch Regions 1 Pre-discovered Areas . | . . . . . Known Exits Taken 2 | . . 1 1 . Unknown Exits Taken 2 | 1 1 . . . Scrap Searched 1 | . . . 1 . Spaces Dug 13 | . 4 4 . 5 Terrain Destroyed 18 | . 9 4 . 5 Melee 6 | . . 1 . 5 Projectile 12 | . 9 3 . . AOE . | . . . . . Terrain Rammed 1 | . . . . 1 Walls Destroyed . | . . . . . Machines Disabled . | . . . . . Actions | -11 -10 -9 -9 -8 --------- Run | Jun Mat Mat Min Mat Total 1598 | 80 472 287 277 482 Wait 144 | . 53 62 25 4 Move 1282 | 58 375 200 238 411 Hop 1 | . . . . 1 Pick Up 29 | 4 12 4 2 7 Fast Attach 22 | 7 . 2 . 13 Attach 8 | . . 2 . 6 Detach 6 | . . . . 6 Swap 14 | 1 5 3 1 4 Drop 26 | . 4 4 2 16 Fire 53 | 10 23 9 9 2 Melee 12 | . . 1 . 11 Ram 1 | . . . . 1 Kick . | . . . . . Crush . | . . . . . Escape Stasis . | . . . . . Rewire . | . . . . . Trap . | . . . . . Miscellaneous . | . . . . . Route ------- -11/Junkyard -10/Materials (discovered 2 exits: *Mat / [*Min]) -9/Materials -9/Mines -8/Materials History --------- Turn | Location | Event 2 | -11/Junkyard | Met Revision 17 6 | -11/Junkyard | Discovered new exit (range 16) 94 | -11/Junkyard | Entered Materials 324 | -10/Materials | Build established: Mutant 435 | -10/Materials | Discovered new exit (range 14) 593 | -10/Materials | Discovered new exit (range 10) 628 | -10/Materials | Entered another Materials area 628 | -9/Materials | Evolved 2 slots: Power x1, Utility x1 789 | -9/Materials | Discovered new exit (range 12) 946 | -9/Materials | Identified exit to Mines 947 | -9/Materials | Entered Mines 952 | -9/Mines | Met a Derelict bent on vengeance 1098 | -9/Mines | Assembled infested the area 1103 | -9/Mines | Assisted by a Guerilla fighting off Assembled 1243 | -9/Mines | Discovered new exit (range 7) 1248 | -9/Mines | Identified exit to Materials 1249 | -9/Mines | Entered Materials 1249 | -8/Materials | Evolved 2 slots: Propulsion x1, Utility x1 1473 | -8/Materials | Core integrity fell below 50% 1478 | -8/Materials | Released all parts (4) 1483 | -8/Materials | Core integrity fell below 20% 1489 | -8/Materials | Destroyed by G-47 Trooper with Particle Gun Last Messages --------------- 01449_ Flight Unit destroyed. 01449_ Knocked back. 01451_ Imp. Ion Engine destroyed. 01456_ Flight Unit destroyed. 01461_ C-17 Slicer suffers critical hit (Smash). 01461_ Destroyed Blade Saw. 01461_ C-17 Slicer system corrupted by crushing effect. 01461_ C-17 Slicer destroyed. 01465_ Adv. Beam Rifle destroyed. 01466_ Flight Unit destroyed. 01476_ K-01 Serf collects debris. 01478_ Released Propulsion Shielding. 01478_ Released Visual Processing Unit. 01478_ Released Signal Interpreter. 01478_ Released Hvy. Flail. 01483_ K-01 Serf destroyed. 01483_ C-17 Slicer destroyed. 01486_ Slammed into Door. 01486_ Destabilizing: Core damaged (-22). 01488_ K-01 Serf collects debris. Map ----- +----------------------------------------------------+ | ???????????????????????????????????######### ### | | ???????????????????????????????????# # " | | ???????????????????????????????????#" !!] | | ???????????????????????????????????#T !!] " | | ???????????????????????????????????#" !] " | | ???????????????????????????????????# # " | | ???????????????????????????????????# ## | | ??????????????????#############+##?#"###### ### | | ?????????????????? ###"% # #?? | | ?????????????????? H !/ ] # #?? | | ?????????????????? """ #### # #?? | | ??????????????????????# """ """# """ + #?? | | ??????????????????????#g """ = G"# """ # #?? | | ??????????????????????# gg *%/"""# """ " #?? | | ??????????????????"" + ! ########### #?? | | ??????????????????"" # #? | | ??????????????????????# %* ? | | ??????????????????????# ? | | ??????????????????????# # ############ ? | | ??????????????????????#k # #???????? ## | | ??????????????????????# # """#????????# ##? | | ??????????????????????# # R"#????????? ??? | | ??????????????????????# # """#?????????????? | | ??????????????????????# + #?????????????? | | ??????????????????????# # """ #?????????????? | | ??????????????????????###@# """ #?????????????? | | ????????????????????????#k# """ #?????????????? | | ????????????????????????# # #?????????????? | | ????????????????????????#+##########?????????????? | | ?????????????????????????????????????????????????? | | ?????????????????????????????????????????????????? | | ?????????????????????????????????????????????????? | | ?????????????????????????????????????????????????? | | ?????????????????????????????????????????????????? | | ?????????????????????????????????????????????????? | | ?????????????????????????????????????????????????? | | ?????????????????????????????????????????????????? | | ?????????????????????????????????????????????????? | | ?????????????????????????????????????????????????? | | ?????????????????????????????????????????????????? | | ?????????????????????????????????????????????????? | | ?????????????????????????????????????????????????? | | ?????????????????????????????????????????????????? | | ?????????????????????????????????????????????????? | | ?????????????????????????????????????????????????? | | ?????????????????????????????????????????????????? | | ?????????????????????????????????????????????????? | | ?????????????????????????????????????????????????? | | ?????????????????????????????????????????????????? | | ?????????????????????????????????????????????????? | +----------------------------------------------------+ Best States ------------- Heat Dissipation 31 Energy Generation 19 Energy Capacity 430 Matter Stores 300 Matter Capacity 300 Sight Range 18 Robot Scan Range 14 Terrain Scan Density 10 Propulsion Shielding 33 Evasion (%) 63 Item Schematics ----------------- Flight Unit | -9/Materials | Scanalyzed Robot Schematics ------------------ None Fabricated ------------ Nothing Alien Tech Used ----------------- None Achievements -------------- None Challenges ------------ None Game ------ Seed BottomlessEnhancedCasing Manual? 0 Play Time 00:35:32 Cumulative 29.7 hours Start 2024.02.03 @ 02:43:20 End 2024.02.03 @ 03:22:03 Sessions 1 Manual Loads 0 Difficulty Rogue Special Mode None Game No. 21 Rogue 21 Adventurer 0 Explorer 0 Win Type - Total 0 Types 0/0/0/0/0/0/0/0/0 Lore% 18 Gallery% 23 Achievement% 19 Wizard Run 0 Options --------- ASCII 0 Keyboard 1 Movement Vi Keybinds 0 Fullscreen 1 Font 18/Terminus Map View 76x50 Tactical HUD 1 Map Filters NONE Filters NONE Steam 1 RUN: e331b0fc-ccf7-488f-ab63-721f8bd1c006